bitfinex-derivatives/quotes_BTCF0:USTF0_20250806
["timestamp","ask_amount","ask_price","bid_price","bid_amount"]
[1754482019794,1.08445031,114350.0,114340.0,0.33549145]
[1754482027199,1.67913031,114350.0,114340.0,0.33549145]
[1754482027395,1.67913031,114350.0,114340.0,0.51041845]
[1754482032104,1.67913031,114350.0,114340.0,0.33549145]
[1754482033802,1.67913031,114350.0,114340.0,0.51041845]
[1754482035708,1.67913031,114350.0,114340.0,0.33549145]
[1754482037810,1.67913031,114350.0,114340.0,0.51041845]
[1754482039310,1.67913031,114350.0,114340.0,0.33549145]
[1754482040407,1.28299031,114350.0,114340.0,0.50973835]
[1754482040601,0.9421717,114350.0,114340.0,0.50973835]
[1754482040803,1.28299031,114350.0,114340.0,0.50973835]
[1754482041205,1.11041031,114350.0,114340.0,0.50973835]
[1754482042314,1.13620031,114350.0,114340.0,0.50973835]
[1754482042511,1.17405031,114350.0,114340.0,0.50973835]
[1754482042706,1.17405031,114350.0,114340.0,0.87053835]
[1754482044715,1.11041031,114350.0,114340.0,0.87053835]
[1754482045212,1.13620031,114350.0,114340.0,0.87053835]
[1754482045512,1.17405031,114350.0,114340.0,0.87053835]
[1754482048801,0.1749117,114350.0,114340.0,1.21135696]
[1754482049211,0.51573031,114350.0,114340.0,1.21135696]
[1754482049713,0.51573031,114350.0,114340.0,0.87053835]
[1754482049914,0.51573031,114350.0,114340.0,1.21135696]
[1754482051209,0.54096031,114350.0,114340.0,1.21135696]
[1754482051516,0.57839031,114350.0,114340.0,1.21135696]
[1754482052309,0.51573031,114350.0,114340.0,1.21135696]
[1754482053712,0.1749117,114350.0,114340.0,1.21135696]
[1754482053914,0.51573031,114350.0,114340.0,1.21135696]
[1754482054609,1.24158931,114360.0,114350.0,0.1749117]
[1754482054815,1.24158931,114360.0,114350.0,1.14209031]
[1754482055016,1.24158931,114360.0,114350.0,0.8012717]
[1754482055216,1.36672931,114360.0,114350.0,0.8012717]
[1754482056713,0.3983082,114370.0,114360.0,0.1748964]
[1754482057008,1.36421681,114370.0,114360.0,0.8012564]
[1754482057617,0.76865681,114370.0,114360.0,0.8012564]
[1754482057912,0.1758942,114370.0,114360.0,1.15953265]
[1754482058118,0.51671281,114370.0,114360.0,1.15953265]
[1754482058620,0.51571281,114370.0,114360.0,1.15953265]
[1754482059419,0.51671281,114370.0,114360.0,1.15953265]
[1754482059721,0.51671281,114370.0,114360.0,1.17596254]
[1754482059921,0.51571281,114370.0,114360.0,1.15953265]
[1754482060117,0.57837281,114370.0,114360.0,1.15953265]
[1754482060414,0.64085281,114370.0,114360.0,1.15953265]
[1754482060718,0.3000342,114370.0,114360.0,0.81871404]
[1754482062522,0.3000342,114370.0,114360.0,0.83552388]
[1754482064223,0.3000342,114370.0,114360.0,0.81871404]
[1754482064925,0.3000342,114370.0,114360.0,0.83586896]
[1754482065927,0.3000342,114370.0,114360.0,0.81871404]
[1754482067728,0.3000342,114370.0,114360.0,0.8012564]
[1754482067928,0.3000342,114370.0,114360.0,0.81780859]
[1754482068224,0.3000342,114370.0,114360.0,0.8012564]
[1754482071624,0.3403942,114370.0,114360.0,0.8012564]
[1754482073929,0.3000342,114370.0,114360.0,0.8012564]
[1754482074325,0.1748942,114370.0,114360.0,1.10417287]
[1754482075531,0.1748942,114370.0,114360.0,0.8012564]
[1754482076934,0.69041177,114380.0,114370.0,0.3257611]
[1754482077137,0.69041177,114380.0,114370.0,1.3963611]
[1754482077434,0.73077177,114380.0,114370.0,1.3963611]
[1754482077934,0.4278553,114380.0,114370.0,1.3963611]
[1754482078234,0.2623553,114380.0,114370.0,1.41426527]
[1754482078435,0.3874953,114380.0,114370.0,1.41426527]
[1754482078936,0.2623553,114380.0,114370.0,1.41426527]
[1754482079233,0.2633553,114380.0,114370.0,1.41426527]
[1754482079434,0.2643553,114380.0,114370.0,1.41426527]
[1754482080731,0.60508082,114380.0,114370.0,1.75499079]
[1754482081239,0.62793082,114380.0,114370.0,1.75499079]
[1754482081433,0.60508082,114380.0,114370.0,1.75499079]
[1754482081634,0.2643553,114380.0,114370.0,1.75499079]
[1754482081933,0.60508082,114380.0,114370.0,1.75499079]
[1754482082839,0.62793082,114380.0,114370.0,1.75499079]
[1754482084343,0.62793082,114380.0,114370.0,1.39419079]
[1754482084533,0.62793082,114380.0,114370.0,1.75499079]
[1754482086042,0.62793082,114380.0,114370.0,1.39419079]
[1754482086243,0.62793082,114380.0,114370.0,1.75499079]
[1754482089046,0.60508082,114380.0,114370.0,1.75499079]
[1754482089940,0.62793082,114380.0,114370.0,1.75499079]
[1754482091044,0.2643553,114380.0,114370.0,1.75499079]
[1754482091246,0.60508082,114380.0,114370.0,1.75499079]
[1754482094952,0.2872053,114380.0,114370.0,1.75499079]
[1754482095249,0.62793082,114380.0,114370.0,1.75499079]
[1754482096843,0.60508082,114380.0,114370.0,1.75499079]
[1754482098355,0.56136222,114380.0,114370.0,1.75499079]
[1754482102055,0.58421222,114380.0,114370.0,1.41426527]
[1754482102260,0.71582222,114380.0,114370.0,1.05346527]
[1754482102452,0.71582222,114380.0,114370.0,1.41426527]
[1754482105258,0.71582222,114380.0,114370.0,0.81914527]
[1754482105461,0.71582222,114380.0,114370.0,1.29958527]
[1754482105757,0.74782222,114380.0,114370.0,1.41159527]
[1754482108057,0.71582222,114380.0,114370.0,1.41159527]
[1754482108357,0.71582222,114380.0,114370.0,0.81647527]
[1754482108554,0.74782222,114380.0,114370.0,0.45567527]
[1754482109363,0.74782222,114380.0,114370.0,0.83142557]
[1754482109569,0.74782222,114380.0,114370.0,0.99994557]
[1754482109764,0.74782222,114380.0,114370.0,1.04504557]
[1754482110861,1.34386222,114380.0,114370.0,0.44988557]
[1754482112463,1.70466222,114380.0,114370.0,0.44988557]
[1754482113573,1.70466222,114380.0,114370.0,0.40478557]
[1754482114066,1.70466222,114380.0,114370.0,0.45088557]
[1754482117364,0.2878114,114370.0,114360.0,0.14095]
[1754482117570,1.05311692,114370.0,114360.0,0.25007]
[1754482117766,0.3516067,114360.0,114350.0,0.174912]
[1754482118067,0.351622,114350.0,114340.0,0.06851145]
[1754482118367,1.64918752,114350.0,114340.0,0.19978203]
[1754482119270,1.64918752,114350.0,114340.0,0.04286]
[1754482119857,1.64918752,114350.0,114340.0,0.10588]
[1754482120059,1.64918752,114350.0,114340.0,0.04286]
[1754482120361,0.2678173,114340.0,114330.0,0.4250125]
[1754482120556,1.05316282,114340.0,114330.0,0.4250125]
[1754482120761,1.01261059,114340.0,114330.0,0.4250125]
[1754482121365,1.01161059,114340.0,114330.0,0.4260125]
[1754482121669,1.01161059,114340.0,114330.0,0.10688]
[1754482122066,1.02706515,114340.0,114330.0,0.004]
[1754482122266,1.02706515,114340.0,114330.0,0.04686]
[1754482122573,1.01161059,114340.0,114330.0,0.25407]
[1754482122771,1.01161059,114340.0,114330.0,0.4290126]
[1754482123773,1.01161059,114340.0,114330.0,0.32510646]
[1754482123973,1.01161059,114340.0,114330.0,0.50004896]
[1754482124776,1.01161059,114340.0,114330.0,0.32510646]
[1754482124965,1.01161059,114340.0,114330.0,0.50004896]
[1754482125271,1.01161059,114340.0,114330.0,0.32510646]
[1754482125469,1.01161059,114340.0,114330.0,0.50004896]
[1754482125975,1.01161059,114340.0,114330.0,0.32510646]
[1754482126177,1.02675622,114340.0,114330.0,0.50004896]
[1754482128579,1.02675622,114340.0,114330.0,0.32510646]
[1754482129981,1.02675622,114340.0,114330.0,0.50004896]
[1754482131987,1.02675622,114340.0,114330.0,0.32510646]
[1754482136794,1.02675622,114340.0,114330.0,0.27900646]
[1754482138093,1.02675622,114340.0,114330.0,0.07503646]
[1754482138399,1.02675622,114340.0,114330.0,0.11789646]
[1754482140096,1.02675622,114340.0,114330.0,0.07503646]
[1754482140684,1.40588891,114340.0,114330.0,0.07503646]
[1754482145193,1.40588891,114340.0,114330.0,0.07503646]
[1754482145897,1.40588891,114340.0,114330.0,0.11829646]
[1754482146098,1.40588891,114340.0,114330.0,0.24106646]
[1754482146299,1.40588891,114340.0,114330.0,0.33212646]
[1754482148204,1.43090833,114340.0,114330.0,0.33212646]
[1754482150494,1.40588891,114340.0,114330.0,0.33212646]
[1754482152297,1.37573891,114340.0,114330.0,0.21939646]
[1754482152499,1.37573891,114340.0,114330.0,0.33212646]
[1754482152700,1.40469891,114340.0,114330.0,0.33212646]
[1754482164612,1.99973891,114340.0,114330.0,0.33212646]
[1754482170815,1.31743293,114340.0,114330.0,0.33212646]
[1754482171016,1.99973891,114340.0,114330.0,0.33212646]
[1754482179419,1.99973891,114340.0,114330.0,0.28402646]
[1754482179822,1.99973891,114340.0,114330.0,0.21939646]
[1754482180021,1.99973891,114340.0,114330.0,0.11829646]
[1754482188623,1.99973891,114340.0,114330.0,0.07503646]
[1754482189729,1.99973891,114340.0,114330.0,0.07103646]
[1754482190029,0.2550522,114330.0,114320.0,0.03917]
[1754482190230,1.00805818,114330.0,114320.0,0.03917]
[1754482191933,1.00805818,114330.0,114320.0,0.10834431]
[1754482192321,1.00905818,114330.0,114320.0,0.10834431]
[1754482192723,1.01205818,114330.0,114320.0,0.10834431]
[1754482195226,1.01205818,114330.0,114320.0,0.06917431]
[1754482195433,1.01205818,114330.0,114320.0,0.03917]
[1754482196730,1.37285818,114330.0,114320.0,0.0692932]
[1754482197033,0.3257675,114320.0,114310.0,0.6708128]
[1754482197332,1.26188049,114320.0,114310.0,0.19533]
[1754482197532,1.73536658,114320.0,114300.0,0.03917]
[1754482197736,1.13932558,114310.0,114300.0,0.03917]
[1754482198230,0.79817259,114310.0,114300.0,0.03917]
[1754482198934,1.13932558,114310.0,114300.0,0.03917]
[1754482199131,0.1749881,114300.0,114290.0,0.1749902]
[1754482199332,1.60306408,114300.0,114290.0,0.3703202]
[1754482199525,1.60306408,114300.0,114290.0,0.4148202]
[1754482200436,1.60306408,114300.0,114290.0,0.48349475]
[1754482200826,1.60306408,114300.0,114290.0,0.30850455]
[1754482201034,1.60306408,114300.0,114290.0,0.30950455]
[1754482201236,1.96386408,114300.0,114290.0,0.06967455]
[1754482201430,1.96386408,114300.0,114290.0,0.001]
[1754482201632,0.2524187,114280.0,114270.0,0.24456]
[1754482201829,1.25636169,114280.0,114270.0,0.419594]
[1754482202835,1.21865376,114280.0,114270.0,0.49018469]
[1754482203330,0.59761376,114280.0,114270.0,0.49018469]
[1754482203534,0.2625251,114290.0,114280.0,0.2732387]
[1754482203835,0.8591651,114290.0,114280.0,0.7803787]
[1754482204138,0.9019151,114290.0,114280.0,0.7803787]
[1754482204635,1.26076016,114290.0,114280.0,0.7803787]
[1754482204936,1.26476016,114290.0,114280.0,0.7803787]
[1754482205638,1.26676016,114290.0,114280.0,0.7803787]
[1754482208745,0.67012016,114290.0,114280.0,0.7803787]
[1754482208945,1.28924016,114290.0,114280.0,0.7803787]
[1754482211249,1.31524016,114290.0,114280.0,0.7803787]
[1754482214458,1.31524016,114290.0,114280.0,0.4195787]
[1754482214862,1.31524016,114290.0,114280.0,0.24456]
[1754482215858,1.31524016,114290.0,114280.0,0.13772]
[1754482216052,0.2015387,114280.0,114270.0,0.54451376]
[1754482216253,0.62461376,114280.0,114270.0,0.22606376]
[1754482216554,0.92805882,114280.0,114270.0,0.07059069]
[1754482216758,0.250464,114270.0,114260.0,0.5599]
[1754482216959,1.21711906,114270.0,114260.0,0.60536]
[1754482217158,1.21711906,114270.0,114260.0,0.4003]
[1754482217465,1.21711906,114270.0,114260.0,0.0395]
[1754482218053,1.21711906,114270.0,114260.0,0.10088]
[1754482218762,1.21811906,114270.0,114260.0,0.10088]
[1754482219362,1.57891906,114270.0,114260.0,0.10088]
[1754482219862,1.59198754,114270.0,114260.0,0.10088]
[1754482220068,1.59198754,114270.0,114260.0,0.0395]
[1754482221761,1.59198754,114270.0,114260.0,0.10825546]
[1754482222952,1.59198754,114270.0,114260.0,0.06875546]
[1754482223152,0.2504793,114260.0,114250.0,0.49852]
[1754482223355,0.61973436,114260.0,114250.0,0.60536]
[1754482223560,0.98053436,114260.0,114250.0,0.24456]
[1754482223862,0.61973436,114260.0,114250.0,0.24456]
[1754482224465,0.61973436,114260.0,114250.0,0.24556]
[1754482226165,0.61973436,114260.0,114250.0,0.24656]
[1754482226369,0.59454436,114260.0,114250.0,0.0415]
[1754482226569,0.61973436,114260.0,114250.0,0.0415]
[1754482226860,0.62073436,114260.0,114250.0,0.26930269]
[1754482227065,0.62073436,114260.0,114250.0,0.31376269]
[1754482227368,0.62173436,114260.0,114250.0,0.20692269]
[1754482227860,0.62173436,114260.0,114250.0,0.10870269]
[1754482229668,0.98253436,114260.0,114250.0,0.10870269]
[1754482229871,0.98253436,114260.0,114250.0,0.06920269]
[1754482230066,0.2840146,114250.0,114240.0,0.55996]
[1754482230266,1.21262966,114250.0,114240.0,0.24202]
[1754482230471,1.21262966,114250.0,114240.0,0.13565]
[1754482230863,1.21262966,114250.0,114240.0,0.0395]
[1754482231869,1.21262966,114250.0,114240.0,0.1102563]
[1754482232077,0.98549426,114250.0,114240.0,0.0395]
[1754482232576,0.8002746,114250.0,114240.0,0.0395]
[1754482232876,1.10371966,114250.0,114240.0,0.23828]
[1754482233172,1.10371966,114250.0,114240.0,0.0395]
[1754482236073,1.46451966,114250.0,114240.0,0.0395]
[1754482236578,1.46451966,114250.0,114240.0,0.1098641]
[1754482236776,1.46451966,114250.0,114240.0,0.0395]
[1754482237583,1.1610746,114250.0,114240.0,0.0395]
[1754482237784,1.46451966,114250.0,114240.0,0.0395]
[1754482241280,1.46451966,114250.0,114240.0,0.109535]
[1754482243281,1.46451966,114250.0,114240.0,0.070035]
[1754482243478,1.46451966,114250.0,114240.0,0.03973]
[1754482246180,1.46451966,114250.0,114240.0,0.10870068]
[1754482247984,1.46651966,114250.0,114240.0,0.10870068]
[1754482248185,1.46651966,114250.0,114240.0,0.06897068]
[1754482248386,0.1750799,114240.0,114230.0,0.03973]
[1754482248580,0.47852496,114240.0,114230.0,0.03973]
[1754482248790,0.47852496,114240.0,114230.0,0.15606]
[1754482249091,0.47852496,114240.0,114230.0,0.13588]
[1754482249292,0.47852496,114240.0,114230.0,0.23851]
[1754482250082,0.1750953,114230.0,114220.0,0.40053]
[1754482250282,1.07710036,114230.0,114220.0,0.22490269]
[1754482250785,1.07710036,114230.0,114220.0,0.30735269]
[1754482251491,1.07710036,114230.0,114220.0,0.30835269]
[1754482251693,1.07710036,114230.0,114220.0,0.30935269]
[1754482252594,0.47854036,114230.0,114220.0,0.48446329]
[1754482252895,1.07698036,114230.0,114220.0,0.48446329]
[1754482253192,1.08983373,114230.0,114220.0,0.48446329]
[1754482254792,0.47854036,114230.0,114220.0,0.48446329]
[1754482254993,0.7734553,114230.0,114220.0,0.48446329]
[1754482255194,1.07690036,114230.0,114220.0,0.48446329]
[1754482255390,0.47854036,114230.0,114220.0,0.48446329]
[1754482255592,1.07698036,114230.0,114220.0,0.48446329]
[1754482256594,1.09009571,114230.0,114220.0,0.48446329]
[1754482259797,1.09267571,114230.0,114220.0,0.48446329]
[1754482260296,1.07956036,114230.0,114220.0,0.48446329]
[1754482260699,1.09182259,114230.0,114220.0,0.48446329]
[1754482261195,1.09182259,114230.0,114220.0,0.11057269]
[1754482261501,1.75262259,114230.0,114220.0,0.002]
[1754482261701,1.75262259,114230.0,114220.0,1e-07]
[1754482261900,0.1818358,114210.0,114200.0,0.05]
[1754482262197,1.44544086,114210.0,114200.0,0.0894]
[1754482263690,1.44544086,114210.0,114200.0,0.160083]
[1754482263896,1.44544086,114210.0,114200.0,0.162083]
[1754482264600,1.44544086,114210.0,114200.0,0.160083]
[1754482264800,1.44544086,114210.0,114200.0,0.161083]
[1754482268805,1.1419958,114210.0,114200.0,0.161083]
[1754482269007,1.44544086,114210.0,114200.0,0.161083]
[1754482269803,1.44544086,114210.0,114200.0,0.251043]
[1754482270995,1.44544086,114210.0,114200.0,0.5407942]
[1754482271197,0.7799358,114210.0,114200.0,0.5407942]
[1754482271403,0.48512086,114210.0,114200.0,0.5407942]
[1754482271704,1.08592086,114210.0,114200.0,0.5407942]
[1754482272008,0.7824758,114210.0,114200.0,0.5407942]
[1754482272307,1.08592086,114210.0,114200.0,0.5407942]
[1754482272699,1.44672086,114210.0,114200.0,0.365653]
[1754482273002,1.44672086,114210.0,114200.0,0.5407942]
[1754482273202,1.44672086,114210.0,114200.0,0.365653]
[1754482273810,1.44672086,114210.0,114200.0,0.161083]
[1754482274204,1.44672086,114210.0,114200.0,0.051]
[1754482274806,1.44672086,114210.0,114200.0,0.0904]
[1754482275005,1.75016592,114210.0,114200.0,0.0257751]
[1754482275609,1.44672086,114210.0,114200.0,0.0651751]
[1754482276210,1.44772086,114210.0,114200.0,0.0641751]
[1754482278013,1.44972086,114210.0,114200.0,0.0641751]
[1754482278715,0.5454758,114210.0,114200.0,0.0641751]
[1754482279011,1.1463158,114210.0,114200.0,0.0641751]
[1754482279213,1.44976086,114210.0,114200.0,0.0641751]
[1754482281316,1.75320592,114210.0,114200.0,0.0641751]
[1754482281506,1.75320592,114210.0,114200.0,0.0247751]
[1754482282312,0.1790212,114200.0,114190.0,0.0394]
[1754482282511,1.14913132,114200.0,114190.0,0.0394]
[1754482283413,0.0063,114190.0,114180.0,0.0394]
[1754482283617,1.57839806,114190.0,114180.0,0.0394]
[1754482283915,1.62219046,114190.0,114180.0,0.24397]
[1754482284416,1.62219046,114190.0,114180.0,0.31463735]
[1754482284617,1.62219046,114190.0,114180.0,0.31563735]
[1754482285916,1.62219046,114190.0,114180.0,0.49080915]
[1754482286113,1.62219046,114190.0,114180.0,0.31563735]
[1754482286620,1.62219046,114190.0,114180.0,0.49080925]
[1754482287122,1.62219046,114190.0,114180.0,0.31563735]
[1754482290226,1.62219046,114190.0,114180.0,0.31736735]
[1754482290418,1.62219046,114190.0,114180.0,0.11106735]
[1754482291123,1.62219046,114190.0,114180.0,0.31114735]
[1754482293531,1.62219046,114190.0,114180.0,0.07166735]
[1754482293721,1.62219046,114190.0,114180.0,0.10929735]
[1754482294324,1.62219046,114190.0,114180.0,0.13454735]
[1754482294625,1.62219046,114190.0,114180.0,0.19777735]
[1754482295018,1.62419046,114190.0,114180.0,0.22632735]
[1754482295322,1.62519046,114190.0,114180.0,0.30837735]
[1754482296129,1.02387046,114190.0,114180.0,0.30837735]
[1754482296332,1.62471046,114190.0,114180.0,0.30837735]
[1754482303823,0.9574854,114190.0,114180.0,0.30837735]
[1754482304029,1.26211046,114190.0,114180.0,0.30837735]
[1754482305027,1.62291046,114190.0,114180.0,0.30837735]
[1754482305424,1.62287046,114190.0,114180.0,0.30837735]
[1754482306521,1.62287046,114190.0,114180.0,0.20314735]
[1754482306716,1.62287046,114190.0,114180.0,0.10829735]
[1754482309543,0.1978972,114170.0,114160.0,0.71780203]
[1754482309736,1.10142226,114170.0,114160.0,0.71780203]
[1754482310039,1.10142226,114170.0,114160.0,0.56088]
[1754482310841,1.10142226,114170.0,114160.0,0.71780203]
[1754482311541,1.10142226,114170.0,114160.0,0.75643203]
[1754482312043,1.10142226,114170.0,114160.0,0.82711871]
[1754482312345,1.11368691,114170.0,114160.0,0.82711871]
[1754482312532,1.10142226,114170.0,114160.0,0.82711871]
[1754482312738,1.10146226,114170.0,114160.0,1.00232131]
[1754482313339,1.11375951,114170.0,114160.0,1.00232131]
[1754482313744,1.11375951,114170.0,114160.0,0.82711871]
[1754482314541,1.11375951,114170.0,114160.0,1.00232131]
[1754482314952,1.11375951,114170.0,114160.0,0.67019668]
[1754482315145,1.11375951,114170.0,114160.0,0.84539928]
[1754482315346,1.12602951,114170.0,114160.0,0.84539928]
[1754482316546,1.11375951,114170.0,114160.0,0.84539928]
[1754482317648,1.11375951,114170.0,114160.0,0.30939668]
[1754482317853,1.12602951,114170.0,114160.0,0.20416668]
[1754482318148,1.48682951,114170.0,114160.0,0.30939668]
[1754482318949,1.48682951,114170.0,114160.0,0.20416668]
[1754482319353,1.48682951,114170.0,114160.0,0.26739668]
[1754482319946,1.48682951,114170.0,114160.0,0.13786668]
[1754482320151,1.48682951,114170.0,114160.0,0.10931668]
[1754482320355,1.48682951,114170.0,114160.0,0.26314668]
[1754482320556,1.48682951,114170.0,114160.0,0.46579871]
[1754482321451,0.7965172,114170.0,114160.0,0.84487918]
[1754482321648,1.09996226,114170.0,114160.0,0.48407918]
[1754482322255,1.09612226,114170.0,114160.0,0.48407918]
[1754482324063,0.49636226,114170.0,114160.0,0.48407918]
[1754482324356,1.09624226,114170.0,114160.0,0.84487918]
[1754482324958,0.49636226,114170.0,114160.0,0.84487918]
[1754482325159,1.09608226,114170.0,114160.0,0.84487918]
[1754482326561,0.49636226,114170.0,114160.0,0.84487918]
[1754482327062,1.09600226,114170.0,114160.0,0.84487918]
[1754482327665,0.49636226,114170.0,114160.0,0.84487918]
[1754482327867,1.09600226,114170.0,114160.0,0.84487918]
[1754482329364,1.09600226,114170.0,114160.0,1.00180121]
[1754482330169,1.09600226,114170.0,114160.0,0.84487918]
[1754482334060,0.7748272,114170.0,114160.0,0.84487918]
[1754482334265,1.07827226,114170.0,114160.0,0.84487918]
[1754482338373,1.09471226,114170.0,114160.0,0.84487918]
[1754482339773,1.46579226,114170.0,114160.0,0.10931668]
[1754482340975,1.46579226,114170.0,114160.0,0.10831668]
[1754482341575,1.46679226,114170.0,114160.0,0.10831668]
[1754482341876,1.46679226,114170.0,114160.0,0.10890668]
[1754482342174,1.46679226,114170.0,114160.0,0.07068668]
[1754482342367,0.1752025,114160.0,114150.0,0.77496343]
[1754482342569,0.50536756,114160.0,114150.0,0.77496343]
[1754482342867,0.50536756,114160.0,114150.0,0.93071913]
[1754482343078,0.50536756,114160.0,114150.0,0.7737971]
[1754482344885,0.50536756,114160.0,114150.0,0.84482634]
[1754482345376,0.49508756,114160.0,114150.0,0.84482634]
[1754482345876,0.49508756,114160.0,114150.0,0.36296462]
[1754482346072,0.50536756,114160.0,114150.0,0.46647462]
[1754482346266,1.16961262,114160.0,114150.0,0.26691462]
[1754482346776,1.16961262,114160.0,114150.0,0.26791462]
[1754482347175,1.16961262,114160.0,114150.0,0.22969462]
[1754482347377,0.5627225,114160.0,114150.0,0.15866538]
[1754482347578,1.16961262,114160.0,114150.0,0.001]
[1754482347874,1.16961262,114160.0,114130.0,0.59954549]
[1754482347875,0.1752332,114140.0,114130.0,0.59954549]
[1754482348071,1.47543826,114140.0,114130.0,0.19588538]
[1754482348477,1.47543826,114140.0,114130.0,0.096]
[1754482348678,1.47543826,114140.0,114130.0,0.16481287]
[1754482348879,1.47543826,114140.0,114130.0,0.23880287]
[1754482349270,1.47543826,114140.0,114130.0,0.20308287]
[1754482349471,1.47543826,114140.0,114130.0,0.30659287]
[1754482349978,1.47543826,114140.0,114130.0,0.30859287]
[1754482350164,1.47543826,114140.0,114130.0,0.04022]
[1754482350369,1.47543826,114140.0,114130.0,0.04222]
[1754482350771,1.47543826,114140.0,114130.0,0.04022]
[1754482350976,0.2003886,114130.0,114120.0,0.23601]
[1754482351166,0.86463366,114130.0,114120.0,0.19426]
[1754482351575,0.86463366,114130.0,114120.0,0.13514]
[1754482351778,0.190734,114120.0,114110.0,0.15766538]
[1754482351975,1.77773412,114120.0,114110.0,0.19812538]
[1754482352280,1.170844,114120.0,114110.0,0.19812538]
[1754482352481,1.169844,114120.0,114110.0,0.04046]
[1754482352667,1.77673412,114120.0,114110.0,0.04046]
[1754482352868,1.77673412,114120.0,114110.0,0.23601]
[1754482353071,1.77573412,114120.0,114110.0,0.23601]
[1754482353578,1.77573412,114120.0,114110.0,0.30573923]
[1754482353980,1.77573412,114120.0,114110.0,0.30773923]
[1754482354179,1.77573412,114120.0,114110.0,0.30873923]
[1754482354378,1.77573412,114120.0,114110.0,0.26698923]
[1754482354579,1.77573412,114120.0,114110.0,0.26598923]
[1754482354779,1.168844,114120.0,114110.0,0.26598923]
[1754482354983,1.46465906,114120.0,114110.0,0.24861923]
[1754482355281,1.47432906,114120.0,114110.0,0.30773923]
[1754482356084,1.46465906,114120.0,114110.0,0.30773923]
[1754482356269,1.161214,114120.0,114110.0,0.30773923]
[1754482356475,1.46465906,114120.0,114110.0,0.30773923]
[1754482356782,1.46465906,114120.0,114110.0,0.23801]
[1754482357683,1.47608112,114120.0,114110.0,0.23801]
[1754482358375,1.18230606,114120.0,114110.0,0.23801]
[1754482358772,1.48575112,114120.0,114110.0,0.23801]
[1754482359782,1.48615112,114120.0,114110.0,0.23801]
[1754482360074,1.18270606,114120.0,114110.0,0.23801]
[1754482360272,1.18274606,114120.0,114110.0,0.23801]
[1754482360481,1.47652112,114120.0,114110.0,0.23801]
[1754482360781,1.48619112,114120.0,114110.0,0.23801]
[1754482362079,1.48607112,114120.0,114110.0,0.23801]
[1754482362275,1.48607112,114120.0,114110.0,0.4132885]
[1754482362480,1.47640112,114120.0,114110.0,0.4132885]
[1754482362982,0.188734,114120.0,114110.0,0.7740885]
[1754482363175,1.10449906,114120.0,114110.0,0.7740885]
[1754482364078,1.10449906,114120.0,114110.0,0.59881]
[1754482364377,1.47496906,114120.0,114110.0,0.23801]
[1754482366482,1.4861193,114120.0,114110.0,0.23801]
[1754482368884,1.4871193,114120.0,114110.0,0.23701]
[1754482369178,1.4871193,114120.0,114110.0,0.23601]
[1754482370885,1.4871193,114120.0,114110.0,0.19426]
[1754482372384,1.79056436,114120.0,114110.0,0.04046]
[1754482372583,1.18367424,114120.0,114110.0,0.04046]
[1754482372786,1.79056436,114120.0,114110.0,0.04046]
[1754482373188,1.79056436,114120.0,114110.0,0.12769]
[1754482373687,1.79056436,114120.0,114110.0,0.04046]
[1754482375587,0.2004186,114110.0,114100.0,0.47131083]
[1754482375894,0.50386366,114110.0,114100.0,0.47131083]
[1754482376190,0.85499366,114110.0,114100.0,0.11051083]
[1754482376391,0.86466366,114110.0,114100.0,0.11051083]
[1754482376885,0.2004339,114100.0,114090.0,0.19426]
[1754482377091,1.11591896,114100.0,114090.0,0.19426]
[1754482377287,0.1753093,114090.0,114080.0,0.53069]
[1754482377482,0.50389436,114090.0,114080.0,0.59681]
[1754482377682,0.49422436,114090.0,114080.0,0.49594]
[1754482377892,0.50389436,114090.0,114080.0,0.59681]
[1754482378284,0.5612493,114090.0,114080.0,0.23601]
[1754482378591,0.86369436,114090.0,114080.0,0.23601]
[1754482378987,0.5602493,114090.0,114080.0,0.23601]
[1754482379188,0.86369436,114090.0,114080.0,0.23601]
[1754482379390,0.86369436,114090.0,114080.0,0.13514]
[1754482379579,0.02514,114080.0,114070.0,0.04046]
[1754482379783,1.25664986,114080.0,114070.0,0.23412]
[1754482379989,1.25664986,114080.0,114070.0,0.19215]
[1754482380294,1.25664986,114080.0,114070.0,0.23412]
[1754482380592,0.9522048,114080.0,114070.0,0.30277973]
[1754482380790,1.25564986,114080.0,114070.0,0.30377973]
[1754482382179,1.25564986,114080.0,114070.0,0.30577973]
[1754482382890,1.55909492,114080.0,114070.0,0.30577973]
[1754482383189,0.9522048,114080.0,114070.0,0.30577973]
[1754482383395,1.25564986,114080.0,114070.0,0.30577973]
[1754482384389,0.9522048,114080.0,114070.0,0.48111973]
[1754482384585,1.25564986,114080.0,114070.0,0.48111973]
[1754482384786,0.9522048,114080.0,114070.0,0.48111973]
[1754482386397,1.25486986,114080.0,114070.0,0.47776973]
[1754482386790,1.25486986,114080.0,114070.0,0.30242973]
[1754482386992,1.25486986,114080.0,114070.0,0.47776973]
[1754482387192,1.24765986,114080.0,114070.0,0.47776973]
[1754482387494,0.62473986,114080.0,114070.0,0.47776973]
[1754482387793,0.2629904,114080.0,114070.0,0.83856973]
[1754482387988,0.8855904,114080.0,114070.0,1.14201479]
[1754482388296,0.2629904,114080.0,114070.0,1.14201479]
[1754482388492,0.2191568,114080.0,114070.0,0.83856973]
[1754482389290,0.3068063,114090.0,114080.0,0.2665447]
[1754482389489,0.3068063,114090.0,114080.0,0.7668947]
[1754482389689,1.23281136,114090.0,114080.0,0.7668947]
[1754482390092,0.9292863,114090.0,114080.0,0.7668947]
[1754482390293,1.23273136,114090.0,114080.0,0.7668947]
[1754482390488,0.61025136,114090.0,114080.0,0.7668947]
[1754482390797,1.23253136,114090.0,114080.0,0.7668947]
[1754482391198,0.9290863,114090.0,114080.0,0.7668947]
[1754482391494,0.3068063,114090.0,114080.0,0.7668947]
[1754482391697,1.23229136,114090.0,114080.0,0.7668947]
[1754482392097,1.23221136,114090.0,114080.0,0.7668947]
[1754482392596,0.2629555,114100.0,114090.0,0.1753092]
[1754482392898,0.2629555,114100.0,114090.0,1.07032426]
[1754482392899,0.1753065,114100.0,114090.0,1.07032426]
[1754482393394,0.1753065,114100.0,114090.0,0.7668792]
[1754482395001,0.1763065,114100.0,114090.0,1.07032426]
[1754482395405,0.1763065,114100.0,114090.0,0.7668792]
[1754482401604,0.49141156,114100.0,114090.0,0.7668792]
[1754482402300,0.49141156,114100.0,114090.0,0.7668793]
[1754482404008,0.1879665,114100.0,114090.0,0.7668793]
[1754482404201,0.49141156,114100.0,114090.0,0.7668793]
[1754482405509,0.1763065,114100.0,114090.0,0.7668793]
[1754482406102,0.47975156,114100.0,114090.0,0.7668793]
[1754482407903,0.1752939,114100.0,114090.0,1.54562036]
[1754482408304,0.1752939,114100.0,114090.0,1.2421753]
[1754482409012,0.1752939,114100.0,114090.0,0.9421753]
[1754482414516,0.1752939,114100.0,114090.0,1.09984068]
[1754482414715,0.1752939,114100.0,114090.0,0.92454468]
[1754482415215,0.48821896,114100.0,114090.0,0.92454468]
[1754482415812,0.1847739,114100.0,114090.0,0.92454468]